Workbook

Sheet enter Fringe%
C3: Office of the Governor
C5: Operation Lone Star (OLS)
C7: PERSONNEL OVERTIME SUMMARY
K8: Note: Use a separate form for each
K9: Personnel budget line.
K10: Personnel budget line.
C11: GRANTEE/AGENCY NAME: | K11: Personnel budget line.
C12: FSR REPORTING PERIOD:
C13: GRANT NUMBER: | I13: Enter Fringe PERCENTAGE
C14: A. | E14: B. | F14: C. | G14: D. | H14: E. | I14: F. | J14: G. | K14: H.
C15: SECTION I. CURRENT PERIOD EXPENDITURES: | H15: (C. x D.) | J15: (E. x F.) | K15: (E. + G.)
C16: First & Last Name | D16: TCOLE PID # | E16: Pay Period Ending Date | F16: OLS OT Hours | G16: OT Rate Per Hour | H16: Overtime | I16: Enter Fringe Rate | J16: Fringe | K16: Overtime Plus Fringe
H17: =ROUND(F17*G17,2) -> 0 | J17: =ROUND(H17*I17,2) -> 0 | K17: =+J17+H17 -> 0
H18: =ROUND(F18*G18,2) -> 0 | J18: =ROUND(H18*I18,2) -> 0 | K18: =+J18+H18 -> 0
H19: 0 | J19: 0 | K19: 0
H20: 0 | J20: 0 | K20: 0
H21: 0 | J21: 0 | K21: 0
H22: 0 | J22: 0 | K22: 0
H23: 0 | J23: 0 | K23: 0
H24: =ROUND(F24*G24,2) -> 0 | J24: =ROUND(H24*I24,2) -> 0 | K24: =+J24+H24 -> 0
H25: 0 | J25: 0 | K25: 0
H26: 0 | J26: 0 | K26: 0
H27: 0 | J27: 0 | K27: 0
H28: 0 | J28: 0 | K28: 0
H29: =ROUND(F29*G29,2) -> 0 | J29: =ROUND(H29*I29,2) -> 0 | K29: =+J29+H29 -> 0
H30: 0 | J30: 0 | K30: 0
H31: 0 | J31: 0 | K31: 0
H32: 0 | J32: 0 | K32: 0
H33: 0 | J33: 0 | K33: 0
H34: 0 | J34: 0 | K34: 0
H35: 0 | J35: 0 | K35: 0
H36: 0 | J36: 0 | K36: 0
H37: 0 | J37: 0 | K37: 0
H38: =ROUND(F38*G38,2) -> 0 | J38: =ROUND(H38*I38,2) -> 0 | K38: =+J38+H38 -> 0
H39: =ROUND(F39*G39,2) -> 0 | J39: =ROUND(H39*I39,2) -> 0 | K39: =+J39+H39 -> 0
H40: 0 | J40: 0 | K40: 0
H41: 0 | J41: 0 | K41: 0
C42: ****Place Cursor Here to Insert Row. Then Click Red Button. | H42: 0 | J42: 0 | K42: 0
E43: CURRENT PERIOD EXPENDITURES: | F43: =SUM(F17:F42) -> 0 | H43: =SUM(H17:H42) -> 0 | J43: =SUM(J17:J42) -> 0 | K43: =SUM(K17:K42) -> 0
C45: SECTION II. ADJUSTMENTS:
C46: First & Last Name | D46: TCOLE PID # | E46: Pay Period Ending Date | F46: OLS OT Hours | G46: OT Rate Per Hour | H46: Overtime | I46: Enter Fringe Rate | J46: Fringe | K46: Overtime Plus Fringe
H47: =ROUND(F47*G47,2) -> 0 | J47: =ROUND(H47*I47,2) -> 0 | K47: =+J47+H47 -> 0
H48: 0 | J48: 0 | K48: 0
H49: 0 | J49: 0 | K49: 0
H50: =ROUND(F50*G50,2) -> 0 | J50: =ROUND(H50*I50,2) -> 0 | K50: =+J50+H50 -> 0
H51: 0 | J51: 0 | K51: 0
C52: ****Place Cursor Here to Insert Row. Then Click Red Button. | H52: 0 | J52: 0 | K52: 0
E53: TOTAL ADJUSTMENTS: | F53: =SUM(F47:F52) -> 0 | H53: =SUM(H47:H52) -> 0 | J53: =SUM(J47:J52) -> 0 | K53: =SUM(K47:K52) -> 0
E55: ADJUSTMENT EXPLANATION:
B56: To ADD ROWS to Section I or II:
B57: Place Cursor In Last Row indicated above
B58: THEN CLICK BUTTON BELOW
E59: TOTAL THIS PERIOD: | F59: =SUM(F53+F43) -> 0 | H59: =SUM(H53+H43) -> 0 | J59: =SUM(J53+J43) -> 0 | K59: =SUM(K53+K43) -> 0
C61: SECTION III. TOTALS:
C62: ** For PREVIOUS FSR totals: In eGrants, go to Budget Tab, then Budget.Summary Tab. In the Financial Status Report (FSR) Summary-To-Date section next to Personnel, click the + sign for the budget line being reported on this form until you see previous hours and dollars. | G62: Number of Hours Worked | H62: Budget Line OOG_Funds
C63: ** TOTAL FROM PREVIOUS FINANCIAL STATUS REPORT (FSR):
C64: TOTAL FOR THIS FSR PERIOD: | G64: =SUM(F59) -> 0 | H64: =SUM(K59) -> 0
C65: CUMULATIVE TOTALS FOR CURRENT FSR: | G65: =SUM(G63:G64) -> 0 | H65: =SUM(H63:H64) -> 0

Sheet enter Fringe$
C3: Office of the Governor
C5: Operation Lone Star (OLS)
C6: PERSONNEL OVERTIME SUMMARY
K7: Note: Use a separate form for each
C8: GRANTEE/AGENCY NAME: | K8: Personnel budget line.
C9: FSR REPORTING PERIOD:
C10: GRANT NUMBER: | I10: Enter Fringe DOLLAR AMT
C11: A. | E11: B. | F11: C. | G11: D. | H11: E. | I11: F. | J11: G. | K11: H.
C12: SECTION I. CURRENT PERIOD EXPENDITURES: | H12: (C. x D.) | I12: (G. / E.) | K12: (E. + G.)
C13: First & Last Name | D13: TCOLE PID # | E13: Pay Period Ending Date | F13: OLS OT Hours | G13: OT Rate Per Hour | H13: Overtime | I13: Fringe Rate | J13: Enter Fringe Dollars | K13: Overtime Plus Fringe
H14: =ROUND(F14*G14,2) -> 0 | I14: =IF(H14=0,"",J14/H14) ->  | K14: =ROUND(H14+J14,2) -> 0
H15: =ROUND(F15*G15,2) -> 0 | I15: =IF(H15=0,"",J15/H15) ->  | K15: =ROUND(H15+J15,2) -> 0
H16: 0 | K16: 0
H17: 0 | K17: 0
H18: 0 | K18: 0
H19: 0 | K19: 0
H20: 0 | K20: 0
H21: 0 | K21: 0
H22: 0 | K22: 0
H23: 0 | K23: 0
H24: 0 | K24: 0
H25: 0 | K25: 0
H26: 0 | K26: 0
H27: 0 | K27: 0
H28: 0 | K28: 0
H29: 0 | K29: 0
H30: 0 | K30: 0
H31: 0 | K31: 0
H32: 0 | K32: 0
H33: 0 | K33: 0
H34: =ROUND(F34*G34,2) -> 0 | I34: =IF(H34=0,"",J34/H34) ->  | K34: 0
H35: 0 | K35: =ROUND(H35+J35,2) -> 0
C36: ****Place Cursor Here to Insert Row. Then Click Red Button. | H36: 0 | K36: 0
E37: CURRENT PERIOD EXPENDITURES: | F37: =SUM(F14:F36) -> 0 | H37: =SUM(H14:H36) -> 0 | J37: =SUM(J14:J36) -> 0 | K37: =SUM(K14:K36) -> 0
C39: SECTION II. ADJUSTMENTS:
C40: First & Last Name | D40: TCOLE PID # | E40: Pay Period Ending Date | F40: OLS OT Hours | G40: OT Rate Per Hour | H40: Overtime | I40: Fringe Rate | J40: Enter Fringe Dollars | K40: Overtime Plus Fringe
H41: =ROUND(F41*G41,2) -> 0 | I41: =IF(H41=0,"",J41/H41) ->  | K41: =ROUND(H41+J41,2) -> 0
H42: 0 | K42: 0
H43: 0 | K43: 0
H44: 0 | K44: 0
H45: =ROUND(F45*G45,2) -> 0 | I45: =IF(H45=0,"",J45/H45) ->  | K45: =ROUND(H45+J45,2) -> 0
C46: ****Place Cursor Here to Insert Row. Then Click Red Button. | H46: 0 | K46: 0
E47: TOTAL ADJUSTMENTS: | F47: =SUM(F41:F46) -> 0 | H47: =SUM(H41:H46) -> 0 | J47: =SUM(J41:J46) -> 0 | K47: =SUM(K41:K46) -> 0
E49: ADJUSTMENT EXPLANATION:
B50: To ADD ROWS to Section I or II:
B51: Place Cursor In Last Row indicated above
B52: THEN CLICK BUTTON BELOW
E53: TOTAL THIS PERIOD: | F53: =SUM(F47+F37) -> 0 | H53: =SUM(H47+H37) -> 0 | J53: =SUM(J47+J37) -> 0 | K53: =SUM(K47+K37) -> 0
C55: SECTION III. TOTALS:
C56: ** For PREVIOUS FSR totals: In eGrants, go to Budget Tab, then Budget.Summary Tab. In the Financial Status Report (FSR) Summary-To-Date section next to Personnel, click the + sign for the budget line being reported on this form until you see previous hours and dollars. | G56: Number of Hours Worked | H56: Budget Line OOG_Funds
C57: ** TOTAL FROM PREVIOUS FINANCIAL STATUS REPORT (FSR):
C58: TOTAL FOR THIS FSR PERIOD: | G58: =SUM(F53) -> 0 | H58: =SUM(K53) -> 0
C59: CUMULATIVE TOTALS FOR CURRENT FSR: | G59: =SUM(G57:G58) -> 0 | H59: =SUM(H57:H58) -> 0

Sheet OLS Augmentees
C3: Office of the Governor
C5: Operation Lone Star (OLS)
C6: PERSONNEL SUMMARY - AUGMENTEES
K7: Note: Use a separate form for each
C8: GRANTEE/AGENCY NAME: | K8: Personnel budget line.
C9: FSR REPORTING PERIOD:
C10: GRANT NUMBER: | I10: Enter Fringe PERCENTAGE
C11: A. | E11: B. | F11: C. | G11: D. | H11: E. | I11: F. | J11: G. | K11: H.
C12: SECTION I. CURRENT PERIOD EXPENDITURES: | H12: (C. x D.) | J12: (E. x F.) | K12: (E. + G.)
C13: First & Last Name | D13: TCOLE PID # | E13: Pay Period Ending Date | F13: OLS Hours | G13: Rate Per Hour | H13: Personnel Cost | I13: Enter Fringe Rate | J13: Fringe | K13: Personnel Plus Fringe
H14: =ROUND(F14*G14,2) -> 0 | J14: =ROUND(H14*I14,2) -> 0 | K14: =+J14+H14 -> 0
H15: =ROUND(F15*G15,2) -> 0 | J15: =ROUND(H15*I15,2) -> 0 | K15: =+J15+H15 -> 0
H16: 0 | J16: 0 | K16: 0
H17: 0 | J17: 0 | K17: 0
H18: 0 | J18: 0 | K18: 0
H19: 0 | J19: 0 | K19: 0
H20: 0 | J20: 0 | K20: 0
H21: 0 | J21: 0 | K21: 0
H22: 0 | J22: 0 | K22: 0
H23: 0 | J23: 0 | K23: 0
H24: 0 | J24: 0 | K24: 0
H25: 0 | J25: 0 | K25: 0
H26: 0 | J26: 0 | K26: 0
H27: 0 | J27: 0 | K27: 0
H28: 0 | J28: 0 | K28: 0
H29: 0 | J29: 0 | K29: 0
H30: 0 | J30: 0 | K30: 0
H31: 0 | J31: 0 | K31: 0
H32: 0 | J32: 0 | K32: 0
H33: 0 | J33: 0 | K33: 0
H34: 0 | J34: 0 | K34: 0
H35: 0 | J35: 0 | K35: 0
C36: ****Place Cursor Here to Insert Row. Then Click Red Button. | H36: 0 | J36: 0 | K36: 0
E37: CURRENT PERIOD EXPENDITURES: | F37: =SUM(F14:F36) -> 0 | H37: =SUM(H14:H36) -> 0 | J37: =SUM(J14:J36) -> 0 | K37: =SUM(K14:K36) -> 0
C39: SECTION II. ADJUSTMENTS:
C40: First & Last Name | D40: TCOLE PID # | E40: Pay Period Ending Date | F40: OLS Hours | G40: Rate Per Hour | H40: Personnel Cost | I40: Enter Fringe Rate | J40: Fringe | K40: Personnel Plus Fringe
H41: =ROUND(F41*G41,2) -> 0 | J41: =ROUND(H41*I41,2) -> 0 | K41: =+J41+H41 -> 0
H42: 0 | J42: 0 | K42: 0
H43: 0 | J43: 0 | K43: 0
H44: 0 | J44: 0 | K44: 0
H45: 0 | J45: 0 | K45: 0
C46: ****Place Cursor Here to Insert Row. Then Click Red Button. | H46: 0 | J46: 0 | K46: 0
E47: TOTAL ADJUSTMENTS: | F47: =SUM(F41:F46) -> 0 | H47: =SUM(H41:H46) -> 0 | J47: =SUM(J41:J46) -> 0 | K47: =SUM(K41:K46) -> 0
E49: ADJUSTMENT EXPLANATION:
B50: To ADD ROWS to Section I or II:
B51: Place Cursor In Last Row indicated above
B52: THEN CLICK BUTTON BELOW
E53: TOTAL THIS PERIOD: | F53: =SUM(F47+F37) -> 0 | H53: =SUM(H47+H37) -> 0 | J53: =SUM(J47+J37) -> 0 | K53: =SUM(K47+K37) -> 0
C55: SECTION III. TOTALS:
C56: ** For PREVIOUS FSR totals: In eGrants, go to Budget Tab, then Budget.Summary Tab. In the Financial Status Report (FSR) Summary-To-Date section next to Personnel, click the + sign for the budget line being reported on this form until you see previous hours and dollars. | G56: Number of Hours Worked | H56: Budget Line OOG_Funds
C57: ** TOTAL FROM PREVIOUS FINANCIAL STATUS REPORT (FSR):
C58: TOTAL FOR THIS FSR PERIOD: | G58: =SUM(F53) -> 0 | H58: =SUM(K53) -> 0
C59: CUMULATIVE TOTALS FOR CURRENT FSR: | G59: =SUM(G57:G58) -> 0 | H59: =SUM(H57:H58) -> 0

Sheet Instructions
A1: PERSONNEL OVERTIME SUMMARY - Homeland Security Grants Division, Office of the Governor
A3: INSTRUCTIONS: You may refer to the "SampleForm" tab for an example of a completed OT Summary Form.
A4: The steps below should be completed for the tab labeled either "enter Fringe%" or "enter Fringe$."
A5: Use "enter Fringe$" if payroll reports show a dollar amount for each person; otherwise, use "enter Fringe%."
A6: * Prepare a separate OT Summary for each budget line, i.e. one for Peace-Officers and one for All-Other-Personnel.
A7: * Cumulative Totals in Section III must match numbers entered into eGrants for the Financial Status Report (FSR).
A8: * Once completed, upload a copy of the Personnel OT Summary report to eGrants in either pdf or Excel (xls or xlsx) format.
A9: * When uploading file - use a naming convention that denotes the FSR period (i.e. December 2016 FSR)
A10: * Keep all other supporting documentation for review upon request; submit only this report when entering an FSR.
A12: REPORTING PERIOD: An FSR is required at least Quarterly, but may be submitted Monthly.
A13: The reporting period must reconcile to entries posted to your general ledger, which may consist of multiple pay periods.
A14: For each FSR, report all entries posted to the general ledger for this Monthly or Quarterly FSR reporting period.
A16: SECTION I. CURRENT PERIOD EXPENDITURES:
A17: To add more lines, place the cursor on the last row for Section I and click the ADD ROWS button.
A18: * Enter the names for each individual claiming grant-funded Overtime Hours for this FSR reporting period.
B19: Note: When entering the FSR in eGrants for a Personnel/Overtime budget line, First and Last Names
B20: will also be entered into eGrants in the Personnel-Compensated field of the FSR.
A21: * Enter Pay Period Ending date for each individual claiming grant-funded Overtime Hours for this FSR reporting period.
B22: Note: If an individual earned overtime during multiple pay periods within this FSR reporting period,
C23: list the individual's name separately under each appropriate Pay Period End Date.
A24: * Enter the total Number of Program Overtime Hours worked (and paid) for each individual for each pay period.
A25: * Enter the Overtime Rate Per Hour for each individual for each pay period.
A26: * If using the "enter Fringe%" tab, enter the Fringe Rate for each individual for each pay period. If using the
A27: "enter Fringe$" tab, enter the Fringe Dollar Amount for each individual for each pay period.
A29: SECTION II. ADJUSTMENTS:
A30: To add more lines, place the cursor on the last row for Section II and click the ADD ROWS button.
A31: This section may be used to report any corrections or adjustments necessary from a previous FSR reporting period.
B32: Examples - Adjustments might be necessary in the following circumstances:
C33: - Unclaimed hours from a previous reporting period.
C34: - Correction of timesheet errors from a previous reporting period.
C35: - Adjustments to remove disallowed hours from a previous reporting period.
C36: - Other accounting adjustments to reconcile the FSR with your general ledger.
A38: * Enter the names for each individual whose OT Hours require adjustment for a prior FSR reporting period.
A39: * Enter the prior pay period affected by the adjustment.
A40: * Enter any adjustments to the Number of Overtime Hours Worked from a previous pay period.
B41: Be sure to enter a minus sign (-) for negative adjustments.
A42: * Enter the Overtime Rate Per Hour for each individual for each pay period period affected.
A43: * Enter the Fringe Rate or Fringe Dollar Amount for each individual for each pay period affected.
B44: You may leave this field blank if Fringe costs were not involved in the adjustment.
A46: SECTION III. TOTALS:
A47: * Enter the cumulative Total Overtime Hours Worked and cumulative Total Expenditures from the PREVIOUS FSR.
B49: Steps to locate Cumulative Total Hours and Total Expenditures for this line item from previous FSR in eGrants:
C50: - Open eGrants and log in.
C51: - From the My.Home page, locate the grant record and click the hyperlinked grant number.
C52: - Navigate to the Budget tab and then the Financial.Status.Report sub tab.
C53: - If you have not already created the FSR for this period, do so now.
C54: - Open the Personnel Budget Category by clicking the plus (+) sign.
C55: - Click the plus (+) sign next to the appropriate OT line item.
C56: - The Cumulative Total Hours and Cumulative Total Expenditures will be displayed in the most
C57: recent FSR under the column headings "Number of Hours Worked" and "OOG Funds", respectively.
A59: * The Cumulative Totals for the CURRENT FSR will auto-calculate.
B60: Use these numbers to complete data entry into eGrants for the current FSR.

Sheet SampleForm
C3: Office of the Governor
C5: Homeland Security Grants Division
C6: PERSONNEL OVERTIME SUMMARY
J7: Note: Use a separate form for each
C8: GRANTEE/AGENCY NAME: | D8: Sample Agency | J8: Personnel-Overtime budget line.
C9: FSR REPORTING PERIOD: | D9: 2016-12-31
C10: GRANT NUMBER: | D10: 1234501
C11: A. | D11: B. | E11: C. | F11: D. | G11: E. | H11: F. | I11: G. | J11: H.
C12: SECTION I. CURRENT PERIOD EXPENDITURES: | G12: (C. x D.) | I12: (E. x F.) | J12: (E. + G.)
C13: First & Last Name | D13: Pay Period Ending | E13: Program OT Hours | F13: OT Rate Per Hour | G13: Overtime | H13: Fringe Rate | I13: Fringe | J13: Overtime Plus Fringe
C14: John Doe | D14: 2016-12-10 | E14: 15 | F14: 18 | G14: =ROUND(E14*F14,2) -> 270 | H14: 0.1465 | I14: =ROUND(G14*H14,2) -> 39.56 | J14: =+I14+G14 -> 309.56
C15: Jane Smith | D15: 2016-12-10 | E15: 10 | F15: 25 | G15: =ROUND(E15*F15,2) -> 250 | H15: 0.1465 | I15: =ROUND(G15*H15,2) -> 36.63 | J15: =+I15+G15 -> 286.63
C16: Joe Grant | D16: 2016-12-10 | E16: 5 | F16: 25 | G16: 125 | H16: 0.1465 | I16: 18.31 | J16: 143.31
C17: Jill Funded | D17: 2016-12-10 | E17: 7 | F17: 18 | G17: 126 | H17: 0.1465 | I17: 18.46 | J17: 144.46
G18: 0 | H18: 0.1465 | I18: 0 | J18: 0
C19: John Doe | D19: 2016-12-24 | E19: 10 | F19: 18 | G19: 180 | H19: 0.1465 | I19: 26.37 | J19: 206.37
C20: Jane Smith | D20: 2016-12-24 | E20: 12 | F20: 25 | G20: 300 | H20: 0.1465 | I20: 43.95 | J20: 343.95
C21: Joe Grant | D21: 2016-12-24 | E21: 16 | F21: 25 | G21: 400 | H21: 0.1465 | I21: 58.6 | J21: 458.6
C22: Jill Funded | D22: 2016-12-24 | E22: 20 | F22: 18 | G22: 360 | H22: 0.1465 | I22: 52.74 | J22: 412.74
G23: 0 | I23: 0 | J23: 0
G24: 0 | I24: 0 | J24: 0
G25: 0 | I25: 0 | J25: 0
G26: 0 | I26: 0 | J26: 0
G27: 0 | I27: 0 | J27: 0
G28: 0 | I28: 0 | J28: 0
G29: 0 | I29: 0 | J29: 0
G30: 0 | I30: 0 | J30: 0
G31: 0 | I31: 0 | J31: 0
G32: 0 | I32: 0 | J32: 0
G33: 0 | I33: 0 | J33: 0
G34: 0 | I34: 0 | J34: 0
C35: ****Place Cursor Here to Insert Row. Then Click Button | G35: =ROUND(E35*F35,2) -> 0 | I35: =ROUND(G35*H35,2) -> 0 | J35: =+I35+G35 -> 0
D36: CURRENT PERIOD EXPENDITURES: | E36: =SUM(E14:E35) -> 95 | G36: =SUM(G14:G35) -> 2011 | I36: =SUM(I14:I35) -> 294.62 | J36: =SUM(J14:J35) -> 2305.62
C38: SECTION II. ADJUSTMENTS:
C39: First & Last Name | D39: Pay Period Ending | E39: Program OT Hours | F39: OT Rate Per Hour | G39: Overtime | H39: Fringe Rate | I39: Fringe | J39: Overtime Plus Fringe
C40: John Doe | D40: 2016-11-12 | E40: -2 | F40: 25 | G40: =ROUND(E40*F40,2) -> -50 | H40: 0.1465 | I40: =ROUND(G40*H40,2) -> -7.33 | J40: =+I40+G40 -> -57.33
C41: Jane Smith | D41: 2016-11-12 | E41: 5 | F41: 18 | G41: 90 | H41: 0.1465 | I41: =ROUND(G41*H41,2) -> 13.19 | J41: =+I41+G41 -> 103.19
C42: Jill Funded | D42: 2016-11-12 | E42: -10 | F42: 33.5 | G42: -335 | H42: 0.1465 | I42: -49.08 | J42: -384.08
G43: 0 | I43: 0 | J43: 0
G44: =ROUND(E44*F44,2) -> 0 | I44: =ROUND(G44*H44,2) -> 0 | J44: =+I44+G44 -> 0
C45: ****Place Cursor Here to Insert Row and Click Button | G45: 0 | I45: 0 | J45: 0
D46: TOTAL ADJUSTMENTS: | E46: =SUM(E40:E45) -> -7 | G46: =SUM(G40:G45) -> -295 | I46: =SUM(I40:I45) -> -43.22 | J46: =SUM(J40:J45) -> -338.22
D48: ADJUSTMENT EXPLANATION:
B49: To ADD ROWS to Section I or II:
B50: Place Cursor In Last Row indicated above
B51: THEN CLICK BUTTON BELOW
D52: TOTAL THIS PERIOD: | E52: =SUM(E46+E36) -> 88 | G52: =SUM(G46+G36) -> 1716 | I52: =SUM(I46+I36) -> 251.4 | J52: =SUM(J46+J36) -> 1967.4
C54: SECTION III. TOTALS:
C55: ** For PREVIOUS FSR totals: In eGrants, go to Budget Tab, then Budget.Summary Tab. In the Financial Status Report (FSR) Summary-To-Date section next to Personnel, click the + sign for the budget line being reported on this form until you see previous hours and dollars. | F55: Number of Hours Worked | G55: Budget Line OOG_Funds
C56: ** TOTAL FROM PREVIOUS FINANCIAL STATUS REPORT (FSR): | F56: 97 | G56: 2330
C57: TOTAL FOR THIS FSR PERIOD: | F57: =SUM(E52) -> 88 | G57: =SUM(J52) -> 1967.4
C58: CUMULATIVE TOTALS FOR CURRENT FSR: | F58: =SUM(F56:F57) -> 185 | G58: =SUM(G56:G57) -> 4297.4
